lending/lending_fUSD_20250808
["ID","MTS","AMOUNT","RATE_DAILY","PERIOD"]
[377965191,1754633441402,-400.0,0.0001888,2]
[377965193,1754633441411,-400.0,0.0001888,2]
[377965195,1754633441421,-400.61,0.0001888,2]
[377965197,1754633441431,-400.0,0.0001888,2]
[377965199,1754633441440,-623.74,0.0001888,2]
[377965201,1754633441449,-878.82,0.0001888,2]
[377965203,1754633441460,-843.67,0.0001888,2]
[377965205,1754633441470,-735.08,0.0001888,2]
[377965207,1754633441479,-648.94,0.0001888,2]
[377965208,1754633441489,-400.0,0.0001888,2]
[377965209,1754633441499,-1034.82,0.0001888,2]
[377965210,1754633441508,-400.0,0.0001888,2]
[377965211,1754633441518,-449.37,0.0001888,2]
[377965212,1754633441527,-463.9,0.0001888,2]
[377965213,1754633441537,-506.32,0.0001888,2]
[377965214,1754633441546,-400.0,0.0001888,2]
[377965215,1754633441557,-1000.0,0.0001888,2]
[377965216,1754633441566,-588.23,0.0001888,2]
[377965217,1754633441576,-578.46,0.0001888,2]
[377965218,1754633441586,-485.57,0.0001888,2]
[377965219,1754633441595,-418.76,0.0001888,2]
[377965220,1754633441605,-400.0,0.0001888,2]
[377965221,1754633441614,-483.15,0.0001888,2]
[377965222,1754633441623,-1115.38,0.0001888,2]
[377965223,1754633441634,-682.26,0.0001888,2]
[377965224,1754633441643,-959.34,0.0001888,2]
[377965225,1754633441652,-574.4,0.0001888,2]
[377965226,1754633441661,-400.0,0.0001888,2]
[377965227,1754633441671,-400.0,0.0001888,2]
[377965228,1754633441680,-400.0,0.0001888,2]
[377965229,1754633441689,-587.68,0.0001888,2]
[377965230,1754633441698,-400.0,0.0001888,2]
[377965231,1754633441708,-400.0,0.0001888,2]
[377965232,1754633441717,-400.0,0.0001888,2]
[377965233,1754633441726,-1562.79,0.0001888,2]
[377965234,1754633441738,-808.59,0.0001888,2]
[377965235,1754633441748,-878.24,0.0001888,2]
[377965236,1754633441757,-645.29,0.0001888,2]
[377965237,1754633441766,-725.54,0.0001888,2]
[377965238,1754633441777,-400.0,0.0001888,2]
[377965239,1754633441787,-546.7,0.0001888,2]
[377965240,1754633441796,-400.0,0.0001888,2]
[377965241,1754633441805,-667.19,0.0001888,2]
[377965242,1754633441814,-400.0,0.0001888,2]
[377965243,1754633441825,-400.0,0.0001888,2]
[377965244,1754633441834,-441.87,0.0001888,2]
[377965245,1754633441845,-1544.67,0.0001888,2]
[377965246,1754633441855,-412.83,0.0001888,2]
[377965247,1754633441866,-438.56,0.0001888,2]
[377965248,1754633441875,-400.0,0.0001888,2]
[377965249,1754633441884,-406.84373239,0.0001888,2]
[377965250,1754633441894,-962.47,0.0001888,2]
[377965251,1754633441904,-690.71,0.0001888,2]
[377965252,1754633441914,-400.0,0.0001888,2]
[377965253,1754633441924,-2027.09,0.0001888,2]
[377965254,1754633441933,-1230.71,0.0001888,2]
[377965255,1754633441942,-717.14,0.0001888,2]
[377965256,1754633441951,-400.0,0.0001888,2]
[377965257,1754633441960,-400.0,0.0001888,2]
[377965258,1754633441969,-400.0,0.0001888,2]
[377965259,1754633441978,-400.0,0.0001888,2]
[377965260,1754633441989,-400.0,0.0001888,2]
[377965261,1754633441998,-1053.97,0.0001888,2]
[377965262,1754633442008,-666.85,0.0001888,2]
[377965263,1754633442017,-400.0,0.0001888,2]
[377965264,1754633442026,-400.0,0.0001888,2]
[377965265,1754633442035,-400.0,0.0001888,2]
[377965266,1754633442045,-400.0,0.0001888,2]
[377965267,1754633442054,-400.0,0.0001888,2]
[377965268,1754633442063,-400.0,0.0001888,2]
[377965269,1754633442074,-400.0,0.0001888,2]
[377965270,1754633442083,-899.32,0.0001888,2]
[377965271,1754633442092,-1907.85,0.0001888,2]
[377965272,1754633442102,-400.0,0.0001888,2]
[377965273,1754633442111,-400.0,0.0001888,2]
[377965274,1754633442120,-772.9,0.0001888,2]
[377965275,1754633442129,-488.53,0.0001888,2]
[377965276,1754633442139,-764.55,0.0001888,2]
[377965277,1754633442148,-1109.33,0.0001888,2]
[377965278,1754633442157,-1307.01,0.0001888,2]
[377965279,1754633442167,-400.0,0.0001888,2]
[377965280,1754633442176,-423.011485,0.0001888,2]
[377965281,1754633442189,-400.0,0.0001888,2]
[377965282,1754633442199,-419.43,0.0001888,2]
[377965283,1754633442208,-921.96,0.0001888,2]
[377965284,1754633442217,-400.0,0.0001888,2]
[377965285,1754633442227,-758.73,0.0001888,2]
[377965286,1754633442237,-502.591721,0.0001888,2]
[377965287,1754633442246,-497.85,0.0001888,2]
[377965288,1754633442256,-591.72,0.0001888,2]
[377965289,1754633442267,-787.75,0.0001888,2]
[377965290,1754633442278,-400.0,0.0001888,2]
[377965291,1754633442288,-400.0,0.0001888,2]
[377965292,1754633442300,-400.0,0.0001888,2]
[377965293,1754633442311,-400.0,0.0001888,2]
[377965294,1754633442321,-2073.61,0.0001888,2]
[377965295,1754633442330,-400.0,0.0001888,2]
[377965296,1754633442340,-448.13795557,0.0001888,2]
[377965297,1754633442350,-400.0,0.0001888,2]
[377965298,1754633442359,-434.25,0.0001888,2]
[377965299,1754633442369,-600.45,0.0001888,2]
[377965300,1754633442378,-400.0,0.0001888,2]
[377965301,1754633442388,-1533.4,0.0001888,2]
[377965302,1754633442398,-590.8,0.0001888,2]
[377965303,1754633442407,-495.86,0.0001888,2]
[377965304,1754633442417,-400.0,0.0001888,2]
[377965305,1754633442427,-400.0,0.0001888,2]
[377965306,1754633442436,-400.0,0.0001888,2]
[377965307,1754633442446,-622.78,0.0001888,2]
[377965308,1754633442456,-1080.98,0.0001888,2]
[377965309,1754633442466,-849.77,0.0001888,2]
[377965310,1754633442475,-400.0,0.0001888,2]
[377965311,1754633442486,-503.47,0.0001888,2]
[377965312,1754633442495,-768.76,0.0001888,2]
[377965313,1754633442505,-1473.2,0.0001888,2]
[377965314,1754633442514,-400.0,0.0001888,2]
[377965315,1754633442524,-477.98,0.0001888,2]
[377965316,1754633442534,-733.37,0.0001888,2]
[377965317,1754633442544,-1019.69,0.0001888,2]
[377965318,1754633442554,-5735.2,0.0001888,2]
[377965319,1754633442563,-400.0,0.0001888,2]
[377965320,1754633442573,-565.46,0.0001888,2]
[377965321,1754633442582,-761.96,0.0001888,2]
[377965322,1754633442592,-400.0,0.0001888,2]
[377965323,1754633442601,-740.43,0.0001888,2]
[377965324,1754633442611,-974.69,0.0001888,2]
[377965325,1754633442620,-632.18,0.0001888,2]
[377965326,1754633442630,-400.0,0.0001888,2]
[377965327,1754633442639,-400.0,0.0001888,2]
[377965328,1754633442649,-400.0,0.0001888,2]
[377965329,1754633442658,-1508.21,0.0001888,2]
[377965330,1754633442668,-837.8,0.0001888,2]
[377965331,1754633442678,-400.0,0.0001888,2]
[377965332,1754633442688,-561.31,0.0001888,2]
[377965333,1754633442697,-772.33,0.0001888,2]
[377965334,1754633442707,-813.7,0.0001888,2]
[377965335,1754633442717,-1108.84,0.0001888,2]
[377965336,1754633442726,-400.0,0.0001888,2]
[377965337,1754633442736,-400.0,0.0001888,2]
[377965338,1754633442746,-929.42,0.0001888,2]
[377965339,1754633442756,-1044.73,0.0001888,2]
[377965340,1754633442765,-400.0,0.0001888,2]
[377965341,1754633442775,-400.0,0.0001888,2]
[377965342,1754633442787,-788.41,0.0001888,2]
[377965343,1754633442796,-400.0,0.0001888,2]
[377965344,1754633442806,-400.0,0.0001888,2]
[377965345,1754633442815,-665.38,0.0001888,2]
[377965346,1754633442823,-745.68,0.0001888,2]
[377965347,1754633442832,-789.67,0.0001888,2]
[377965348,1754633442842,-1919.32,0.0001888,2]
[377965349,1754633442851,-969.05,0.0001888,2]
[377965350,1754633442861,-1350.16,0.0001888,2]
[377965351,1754633442870,-400.0,0.0001888,2]
[377965352,1754633442878,-400.0,0.0001888,2]
[377965353,1754633442887,-400.0,0.0001888,2]
[377965354,1754633442896,-400.0,0.0001888,2]
[377965355,1754633442905,-400.0,0.0001888,2]
[377965356,1754633442913,-430.08901502,0.0001888,2]
[377965357,1754633442923,-400.0,0.0001888,2]
[377965358,1754633442931,-400.0,0.0001888,2]
[377965359,1754633442941,-400.0,0.0001888,2]
[377965360,1754633442950,-400.0,0.0001888,2]
[377965361,1754633442959,-732.31,0.0001888,2]
[377965362,1754633442968,-822.93,0.0001888,2]
[377965363,1754633442977,-1216.14,0.0001888,2]
[377965364,1754633442987,-711.64,0.0001888,2]
[377965365,1754633442996,-400.0,0.0001888,2]
[377965366,1754633443007,-433.3,0.0001888,2]
[377965367,1754633443016,-400.0,0.0001888,2]
[377965368,1754633443027,-400.0,0.0001888,2]
[377965369,1754633443038,-489.7745608,0.0001888,2]
[377965370,1754633443047,-429.77,0.0001888,2]
[377965371,1754633443056,-936.99,0.0001888,2]
[377965372,1754633443065,-400.0,0.0001888,2]
[377965373,1754633443075,-1412.2,0.0001888,2]
[377965374,1754633443084,-2276.05,0.0001888,2]
[377965375,1754633443093,-400.0,0.0001888,2]
[377965376,1754633443102,-400.0,0.0001888,2]
[377965377,1754633443113,-1350.92,0.0001888,2]
[377965378,1754633443123,-959.49,0.0001888,2]
[377965379,1754633443132,-470.07,0.0001888,2]
[377965380,1754633443141,-400.0,0.0001888,2]
[377965381,1754633443149,-772.17,0.0001888,2]
[377965382,1754633443158,-735.36,0.0001888,2]
[377965383,1754633443167,-242.59565278,0.0001888,2]
[377965384,1754633443177,-400.0,0.0001888,2]
[377965385,1754633443189,-403.59,0.0001888,2]
[377965386,1754633443199,-782.7,0.0001888,2]
[377965387,1754633443208,-400.0,0.0001888,2]
[377965388,1754633443217,-2726.7,0.0001888,2]
[377965389,1754633443227,-1173.78,0.0001888,2]
[377965390,1754633443236,-794.35,0.0001888,2]
[377965391,1754633443245,-400.0,0.0001888,2]
[377965392,1754633443254,-400.0,0.0001888,2]
[377965393,1754633443263,-400.0,0.0001888,2]
[377965394,1754633443273,-400.0,0.0001888,2]
[377965395,1754633443282,-1095.07,0.0001888,2]
[377965396,1754633443291,-419.01,0.0001888,2]
[377965397,1754633443300,-400.0,0.0001888,2]
[377965398,1754633443309,-442.79618177,0.0001888,2]
[377965399,1754633443318,-400.0,0.00018881,2]
[377965400,1754633443328,-400.0,0.00018881,2]
[377965401,1754633443337,-299.80236492,0.00018881,2]
[377965402,1754633443346,-400.0,0.00018881,2]
[377965403,1754633443355,-400.0,0.00018881,2]
[377965404,1754633443364,-400.0,0.00018881,2]
[377965405,1754633443374,-400.0,0.00018881,2]
[377965406,1754633443383,-400.0,0.00018881,2]
[377965407,1754633443392,-713.81,0.00018881,2]
[377965408,1754633443402,-400.0,0.00018881,2]
[377965409,1754633443411,-400.0,0.00018881,2]
[377965410,1754633443420,-400.0,0.00018881,2]
[377965411,1754633443430,-600.7,0.00018881,2]
[377965412,1754633443440,-400.0,0.00018881,2]
[377965413,1754633443449,-400.0,0.00018881,2]
[377965414,1754633443459,-400.0,0.00018881,2]
[377965415,1754633443468,-400.0,0.00018881,2]
[377965416,1754633443477,-663.46,0.00018881,2]
[377965417,1754633443487,-400.0,0.00018881,2]
[377965418,1754633443496,-529.02,0.00018881,2]
[377965419,1754633443506,-799.89,0.00018881,2]
[377965420,1754633443515,-400.0,0.00018881,2]
[377965421,1754633443525,-400.0,0.00018881,2]
[377965422,1754633443535,-283.8446812,0.00018881,2]
[377965423,1754633443545,-890.26,0.00018881,2]
[377965424,1754633443554,-400.0,0.00018881,2]
[377965425,1754633443564,-556.98,0.00018881,2]
[377965426,1754633443573,-400.0,0.00018881,2]
[377965427,1754633443583,-600.12,0.00018881,2]
[377965428,1754633443592,-400.0,0.00018881,2]
[377965429,1754633443601,-400.0,0.00018881,2]
[377965430,1754633443610,-400.0,0.00018881,2]
[377965431,1754633443619,-400.0,0.00018881,2]
[377965432,1754633443628,-540.01,0.00018881,2]
[377965433,1754633443637,-625.06,0.00018881,2]
[377965434,1754633443647,-400.0,0.00018881,2]
[377965435,1754633443655,-400.0,0.00018881,2]
[377965436,1754633443665,-712.38,0.00018881,2]
[377965437,1754633443675,-832.54,0.00018881,2]
[377965438,1754633443684,-400.0,0.00018881,2]
[377965439,1754633443693,-511.68598815,0.00018881,2]
[377965440,1754633443703,-400.0,0.00018881,2]
[377965441,1754633443712,-400.0,0.00018881,2]
[377965442,1754633443721,-400.0,0.00018881,2]
[377965443,1754633443730,-400.0,0.00018881,2]
[377965444,1754633443739,-400.0,0.00018881,2]
[377965445,1754633443749,-400.0,0.00018881,2]
[377965446,1754633443758,-400.0,0.00018881,2]
[377965447,1754633443767,-400.0,0.00018881,2]
[377965448,1754633443777,-400.0,0.00018881,2]
[377965449,1754633443787,-400.0,0.00018881,2]
[377965450,1754633443796,-400.0,0.00018881,2]
[377965451,1754633443806,-469.15967668,0.00018881,2]
[377965452,1754633443815,-400.0,0.00018881,2]
[377965453,1754633443824,-400.0,0.00018881,2]
[377965454,1754633443833,-527.91,0.00018881,2]
[377965455,1754633443842,-400.0,0.00018881,2]
[377965456,1754633443851,-843.72,0.00018881,2]
[377965457,1754633443860,-857.77,0.00018881,2]
[377965458,1754633443869,-400.0,0.00018881,2]
[377965459,1754633443879,-659.76,0.00018881,2]
[377965460,1754633443888,-526.7,0.00018881,2]
[377965461,1754633443898,-472.66,0.00018881,2]
[377965462,1754633443907,-400.0,0.00018881,2]
[377965463,1754633443916,-400.0,0.00018881,2]
[377965464,1754633443925,-400.0,0.00018881,2]
[377965465,1754633443934,-400.0,0.00018881,2]
[377965466,1754633443943,-792.72,0.00018881,2]
[377965467,1754633443952,-400.59,0.00018881,2]
[377965468,1754633443962,-720.65,0.00018881,2]
[377965469,1754633443971,-400.0,0.00018881,2]
[377965470,1754633443980,-400.0,0.00018881,2]
[377965471,1754633443990,-400.0,0.00018881,2]
[377965472,1754633444000,-400.0,0.00018881,2]
[377965473,1754633444009,-285.30289711,0.00018881,2]
[377965474,1754633444019,-400.0,0.00018881,2]
[377965475,1754633444028,-485.75,0.00018881,2]
[377965476,1754633444038,-400.0,0.00018881,2]
[377965477,1754633444048,-400.0,0.00018881,2]
[377965478,1754633444056,-400.0,0.00018881,2]
[377965479,1754633444067,-449.48,0.00018881,2]
[377965480,1754633444076,-400.0,0.00018881,2]
[377965481,1754633444086,-816.33,0.00018881,2]
[377965482,1754633444095,-400.0,0.00018881,2]
[377965483,1754633444104,-400.0,0.00018881,2]
[377965484,1754633444113,-778.34,0.00018881,2]
[377965485,1754633444122,-264.81304907,0.00018881,2]
[377965486,1754633444131,-400.0,0.00018881,2]
[377965487,1754633444141,-400.0,0.00018881,2]
[377965488,1754633444150,-400.0,0.00018881,2]
[377965489,1754633444159,-506.68,0.00018881,2]
[377965490,1754633444169,-924.93,0.00018881,2]
[377965491,1754633444180,-400.0,0.00018881,2]
[377965492,1754633444191,-400.0,0.00018881,2]
[377965493,1754633444200,-400.0,0.00018881,2]
[377965494,1754633444209,-400.0,0.00018881,2]
[377965495,1754633444219,-400.0,0.00018881,2]
[377965496,1754633444229,-400.0,0.00018881,2]
[377965497,1754633444238,-400.0,0.00018881,2]
[377965498,1754633444247,-400.0,0.00018881,2]
[377965499,1754633444256,-869.5,0.00018881,2]
[377965500,1754633444265,-750.37,0.00018881,2]
[377965501,1754633444275,-686.31,0.00018881,2]
[377965502,1754633444285,-729.83,0.00018881,2]
[377965503,1754633444294,-439.23,0.00018881,2]
[377965504,1754633444304,-400.0,0.00018881,2]
[377965505,1754633444313,-713.89,0.00018881,2]
[377965506,1754633444322,-400.0,0.00018881,2]
[377965507,1754633444331,-400.0,0.00018881,2]
[377965508,1754633444341,-400.0,0.00018881,2]
[377965509,1754633444350,-400.0,0.00018881,2]
[377965510,1754633444360,-653.97,0.00018881,2]
[377965511,1754633444369,-400.0,0.00018881,2]
[377965512,1754633444379,-400.0,0.00018881,2]
[377965513,1754633444388,-1468.06,0.00018881,2]
[377965514,1754633444398,-400.0,0.00018881,2]
[377965515,1754633444408,-402.2,0.00018881,2]
[377965516,1754633444417,-400.0,0.00018881,2]
[377965517,1754633444426,-660.99,0.00018881,2]
[377965518,1754633444436,-400.0,0.00018881,2]
[377965519,1754633444445,-400.0,0.00018881,2]
[377965520,1754633444679,-400.0,0.00018881,2]
[377965521,1754633444689,-400.0,0.00018881,2]
[377965522,1754633444698,-400.0,0.00018881,2]
[377965523,1754633444708,-400.0,0.00018881,2]
[377965524,1754633444718,-1040.88,0.00018881,2]
[377965525,1754633444729,-400.0,0.00018881,2]
[377965526,1754633444738,-400.0,0.00018881,2]
[377965527,1754633444748,-412.71,0.00018881,2]
[377965528,1754633444757,-400.0,0.00018881,2]
[377965529,1754633444767,-464.5,0.00018881,2]
[377965530,1754633444776,-794.44,0.00018881,2]
[377965531,1754633444787,-1092.56,0.00018881,2]
[377965532,1754633444797,-400.0,0.00018881,2]
[377965533,1754633444806,-400.0,0.00018881,2]
[377965534,1754633444816,-400.0,0.00018881,2]
[377965535,1754633444826,-400.0,0.00018881,2]
[377965536,1754633444835,-975.27,0.00018881,2]
[377965537,1754633444845,-819.33,0.00018881,2]
[377965538,1754633444854,-400.0,0.00018881,2]
[377965539,1754633444864,-699.71,0.00018881,2]
[377965540,1754633444873,-406.68,0.00018881,2]
[377965542,1754633444883,-400.0,0.00018881,2]
[377965543,1754633444892,-697.96,0.00018881,2]
[377965544,1754633444903,-400.0,0.00018881,2]
[377965545,1754633444912,-1098.98,0.00018881,2]
[377965546,1754633444922,-668.25,0.00018881,2]
[377965547,1754633444931,-400.0,0.00018881,2]
[377965548,1754633444941,-1437.6,0.00018881,2]
[377965549,1754633444950,-1104.49,0.00018881,2]
[377965550,1754633444959,-400.0,0.00018881,2]
[377965551,1754633444969,-644.56,0.00018881,2]
[377965552,1754633444979,-400.0,0.00018881,2]
[377965553,1754633444988,-484.45,0.00018881,2]
[377965554,1754633444998,-400.0,0.00018881,2]
[377965555,1754633445007,-955.13,0.00018881,2]
[377965556,1754633445017,-1008.0,0.00018881,2]
[377965557,1754633445027,-400.0,0.00018881,2]
[377965558,1754633445038,-400.0,0.00018881,2]
[377965559,1754633445048,-400.0,0.00018881,2]
[377965560,1754633445058,-400.0,0.00018881,2]
[377965561,1754633445068,-400.0,0.00018881,2]
[377965562,1754633445077,-1000.11,0.00018881,2]
[377965563,1754633445088,-400.0,0.00018881,2]
[377965564,1754633445098,-400.0,0.00018881,2]
[377965565,1754633445108,-400.0,0.00018881,2]
[377965566,1754633445118,-400.0,0.00018881,2]
[377965567,1754633445127,-807.4,0.00018881,2]
[377965568,1754633445137,-412.52,0.00018881,2]
[377965569,1754633445147,-852.39,0.00018881,2]
[377965570,1754633445156,-556.55,0.00018881,2]
[377965571,1754633445166,-704.0,0.00018881,2]
[377965572,1754633445176,-447.61,0.00018881,2]
[377965573,1754633445191,-498.62,0.00018881,2]
[377965574,1754633445201,-1178.67,0.00018881,2]
[377965575,1754633445211,-851.09,0.00018881,2]
[377965576,1754633445220,-715.34,0.00018881,2]
[377965577,1754633445229,-507.94,0.00018881,2]
[377965578,1754633445239,-526.5,0.00018881,2]
[377965579,1754633445249,-804.15,0.00018881,2]
[377965580,1754633445258,-537.32,0.00018881,2]
[377965581,1754633445270,-550.2,0.00018881,2]
[377965582,1754633445281,-1208.32,0.00018881,2]
[377965583,1754633445292,-958.8,0.00018881,2]
[377965584,1754633445301,-803.23,0.00018881,2]
[377965585,1754633445311,-733.63,0.00018881,2]
[377965586,1754633445320,-400.0,0.00018881,2]
[377965587,1754633445330,-872.06,0.00018881,2]
[377965588,1754633445340,-1888.5,0.00018881,2]
[377965590,1754633445349,-400.0,0.00018881,2]
[377965592,1754633445359,-1193.08,0.00018881,2]
[377965594,1754633445369,-400.0,0.00018881,2]
[377965596,1754633445378,-400.0,0.00018881,2]
[377965598,1754633445388,-1224.48,0.00018881,2]
[377965600,1754633445397,-400.0,0.00018881,2]
[377965602,1754633445407,-400.0,0.00018881,2]
[377965604,1754633445416,-1017.61,0.00018881,2]
[377965605,1754633445426,-604.7,0.00018881,2]
[377965606,1754633445436,-400.0,0.00018881,2]
[377965607,1754633445445,-400.0,0.00018881,2]
[377965608,1754633445455,-400.0,0.00018881,2]
[377965610,1754633445465,-554.88,0.00018881,2]
[377965612,1754633445474,-1355.75,0.00018881,2]
[377965614,1754633445484,-899.78,0.00018881,2]
[377965616,1754633445493,-400.0,0.00018881,2]
[377965617,1754633445502,-400.0,0.00018881,2]
[377965618,1754633445512,-400.0,0.00018881,2]
[377965619,1754633445522,-936.6,0.00018881,2]
[377965620,1754633445531,-574.32,0.00018881,2]
[377965621,1754633445541,-911.94,0.00018881,2]
[377965622,1754633445551,-788.85,0.00018881,2]
[377965623,1754633445560,-600.29,0.00018881,2]
[377965624,1754633445571,-1155.16,0.00018881,2]
[377965626,1754633445580,-400.0,0.00018881,2]
[377965627,1754633445590,-1931.27,0.00018881,2]
[377965628,1754633445600,-400.0,0.00018881,2]
[377965630,1754633445609,-944.46,0.00018881,2]
[377965631,1754633445619,-1060.54,0.00018881,2]
[377965632,1754633445628,-400.0,0.00018881,2]
[377965633,1754633445638,-400.0,0.00018881,2]
[377965634,1754633445647,-635.85,0.00018881,2]
[377965635,1754633445657,-159.68624649,0.00018881,2]
[377965636,1754633445666,-400.0,0.00018881,2]
[377965637,1754633445676,-1024.94,0.00018881,2]
[377965638,1754633445685,-400.0,0.00018881,2]
[377965639,1754633445694,-400.0,0.00018881,2]
[377965640,1754633445704,-400.0,0.00018881,2]
[377965641,1754633445714,-400.0,0.00018881,2]
[377965642,1754633445723,-1174.97,0.00018881,2]
[377965643,1754633445733,-422.84,0.00018881,2]
[377965644,1754633445742,-400.0,0.00018881,2]
[377965645,1754633445751,-505.97,0.00018881,2]
[377965646,1754633445761,-708.36,0.00018881,2]
[377965647,1754633445771,-400.0,0.00018881,2]
[377965648,1754633445781,-922.72,0.00018881,2]
[377965649,1754633445792,-456.24,0.00018881,2]
[377965650,1754633445801,-400.0,0.00018881,2]
[377965651,1754633445811,-451.98,0.00018881,2]
[377965652,1754633445820,-813.37,0.00018881,2]
[377965653,1754633445830,-400.0,0.00018881,2]
[377965654,1754633445840,-1081.45,0.00018881,2]
[377965655,1754633445849,-850.71,0.00018881,2]
[377965656,1754633445859,-1329.33,0.00018881,2]
[377965657,1754633445868,-897.4,0.00018881,2]
[377965658,1754633445877,-403.60024421,0.00018881,2]
[377965659,1754633445887,-400.0,0.00018881,2]
[377965660,1754633445897,-400.0,0.00018881,2]
[377965661,1754633445907,-970.75,0.00018881,2]
[377965662,1754633445917,-400.0,0.00018881,2]
[377965663,1754633445926,-846.24,0.00018881,2]
[377965664,1754633445935,-390.1711514,0.00018881,2]
[377965665,1754633445945,-400.0,0.00018881,2]
[377965666,1754633445955,-1264.5,0.00018881,2]
[377965667,1754633445964,-400.0,0.00018881,2]
[377965668,1754633445973,-400.0,0.00018881,2]
[377965669,1754633445983,-1447.02,0.00018881,2]
[377965670,1754633445992,-400.0,0.00018881,2]
[377965671,1754633446002,-1347.11,0.00018881,2]
[377965672,1754633446011,-400.0,0.00018881,2]
[377965673,1754633446021,-403.83,0.00018881,2]
[377965674,1754633446030,-400.0,0.00018881,2]
[377965675,1754633446041,-400.0,0.00018881,2]
[377965676,1754633446050,-400.0,0.00018881,2]
[377965677,1754633446060,-774.21,0.00018881,2]
[377965678,1754633446070,-400.0,0.00018881,2]
[377965679,1754633446080,-1098.16,0.00018881,2]
[377965681,1754633446089,-1837.54,0.00018881,2]
[377965683,1754633446099,-400.0,0.00018881,2]
[377965685,1754633446108,-836.84,0.00018881,2]
[377965687,1754633446117,-897.92,0.00018881,2]
[377965689,1754633446127,-1107.58,0.00018881,2]
[377965691,1754633446136,-400.0,0.00018881,2]
[377965693,1754633446146,-400.0,0.00018881,2]
[377965695,1754633446155,-802.15,0.00018881,2]
[377965697,1754633446165,-1470.13,0.00018881,2]
[377965699,1754633446174,-1305.38,0.00018881,2]
[377965701,1754633446187,-384.63786102,0.00018881,2]
[377965703,1754633446197,-1600.93,0.00018881,2]
[377965704,1754633446206,-400.0,0.00018881,2]
[377965705,1754633446215,-1415.01,0.00018881,2]
[377965706,1754633446226,-400.0,0.00018881,2]
[377965707,1754633446235,-1081.7,0.00018881,2]
[377965708,1754633446245,-495.11,0.00018881,2]
[377965709,1754633446254,-1454.56,0.00018881,2]
[377965710,1754633446266,-750.92,0.00018881,2]
[377965711,1754633446275,-400.0,0.00018881,2]
[377965712,1754633446284,-707.55,0.00018881,2]
[377965713,1754633446294,-883.08,0.00018881,2]
[377965714,1754633446304,-885.57,0.00018881,2]
[377965715,1754633446313,-1704.02,0.00018881,2]
[377965716,1754633446323,-799.18,0.00018881,2]
[377965717,1754633446333,-1363.7,0.00018881,2]
[377965718,1754633446342,-1086.69,0.00018881,2]
[377965719,1754633446352,-791.02,0.00018881,2]
[377965720,1754633446361,-473.49,0.00018881,2]
[377965721,1754633446371,-889.62,0.00018881,2]
[377965722,1754633446381,-1180.13,0.00018881,2]
[377965723,1754633446390,-1837.12,0.00018881,2]
[377965724,1754633446399,-400.0,0.00018881,2]
[377965725,1754633446409,-789.15,0.00018881,2]